[Event "January 2 Late 2024"]
[Site "https://www.chess.com"]
[Date "2024.01.02"]
[Round "3"]
[White "Delgado Kuffo, Andres"]
[Black "Silva, Kaua Marques"]
[Result "0-1"]
[Board "155"]
[TimeControl "180+1"]
[WhiteFideId "3600475"]
[BlackFideId "22701168"]
[WhiteElo "2277"]
[BlackElo "2532"]
[WhiteTeam "ECU"]
[BlackTeam "BRA"]
[WhiteClock "0:00:07"]
[BlackClock "0:00:03"]

1. e4 {[%clk 0:02:50]}  e6 {[%clk 0:02:59]} 2. d4 {[%clk 0:02:47]}  d5 {[%clk 0:02:59]} 3. e5 {[%clk 0:02:46]}  c5 {[%clk 0:02:59]} 4. c3 {[%clk 0:02:45]}  Nc6 {[%clk 0:03:00]} 5. Nf3 {[%clk 0:02:43]}  Nge7 {[%clk 0:03:00]} 6. Be3 {[%clk 0:02:41]}  Nf5 {[%clk 0:02:59]} 7. Bd3 {[%clk 0:02:41]}  cxd4 {[%clk 0:02:55]} 8. cxd4 {[%clk 0:02:40]}  Be7 {[%clk 0:02:46]} 9. h4 {[%clk 0:02:36]}  h6 {[%clk 0:02:43]} 10. h5 {[%clk 0:02:32]}  Qb6 {[%clk 0:02:41]} 11. Qd2 {[%clk 0:02:31]}  Bd7 {[%clk 0:02:37]} 12. Nc3 {[%clk 0:02:29]}  Rc8 {[%clk 0:02:26]} 13. Bxf5 {[%clk 0:02:28]}  exf5 {[%clk 0:02:26]} 14. Nxd5 {[%clk 0:02:28]}  Qd8 {[%clk 0:02:18]} 15. Nxe7 {[%clk 0:02:28]}  Qxe7 {[%clk 0:02:19]} 16. O-O {[%clk 0:02:22]}  O-O {[%clk 0:02:19]} 17. Rfe1 {[%clk 0:02:19]}  Nb4 {[%clk 0:02:16]} 18. d5 {[%clk 0:02:11]}  Nc2 {[%clk 0:02:02]} 19. d6 {[%clk 0:02:01]}  Qd8 {[%clk 0:01:48]} 20. Rac1 {[%clk 0:02:01]}  Nxe1 {[%clk 0:01:48]} 21. Rxe1 {[%clk 0:01:58]}  Re8 {[%clk 0:01:30]} 22. Bxh6 {[%clk 0:01:53]}  gxh6 {[%clk 0:01:26]} 23. Qxh6 {[%clk 0:01:54]}  Re6 {[%clk 0:01:27]} 24. Qf4 {[%clk 0:01:47]}  Qf8 {[%clk 0:01:14]} 25. Ng5 {[%clk 0:01:43]}  Ree8 {[%clk 0:01:11]} 26. Re3 {[%clk 0:01:42]}  f6 {[%clk 0:00:21]} 27. Nf3 {[%clk 0:00:34]}  Qg7 {[%clk 0:00:12]} 28. h6 {[%clk 0:00:32]}  Qg4 {[%clk 0:00:11]} 29. Qh2 {[%clk 0:00:25]}  Rc1+ {[%clk 0:00:10]} 30. Ne1 {[%clk 0:00:25]}  f4 {[%clk 0:00:08]} 31. Re4 {[%clk 0:00:19]}  Bc6 {[%clk 0:00:05]} 32. f3 {[%clk 0:00:19]}  Qg3 {[%clk 0:00:04]} 33. Qxg3+ {[%clk 0:00:18]}  fxg3 {[%clk 0:00:05]} 34. Kf1 {[%clk 0:00:16]}  Bb5+ {[%clk 0:00:03]} 35. Kg1 {[%clk 0:00:15]}  Rxe5 {[%clk 0:00:03]} 36. d7 {[%clk 0:00:12]}  Rxe1+ {[%clk 0:00:02]} 37. Rxe1 {[%clk 0:00:07]}  Rxe1# {[%clk 0:00:03]} 0-1

[Event "January 2 Late 2024"]
[Site "https://www.chess.com"]
[Date "2024.01.02"]
[Round "3"]
[White "Kruckenhauser, Arthur"]
[Black "Bryant, Todd"]
[Result "1-0"]
[Board "156"]
[TimeControl "180+1"]
[WhiteFideId "1642812"]
[BlackFideId "2031299"]
[WhiteElo "2527"]
[BlackElo "2274"]
[WhiteTeam "AUT"]
[BlackTeam "USA"]
[WhiteClock "0:01:23"]
[BlackClock "0:00:23"]

1. c4 {[%clk 0:03:00]}  Nf6 {[%clk 0:02:59]} 2. g3 {[%clk 0:03:01]}  g6 {[%clk 0:02:59]} 3. Bg2 {[%clk 0:03:01]}  Bg7 {[%clk 0:03:00]} 4. Nc3 {[%clk 0:03:02]}  O-O {[%clk 0:03:01]} 5. e3 {[%clk 0:03:01]}  c5 {[%clk 0:03:00]} 6. Nge2 {[%clk 0:03:01]}  d6 {[%clk 0:03:01]} 7. O-O {[%clk 0:03:01]}  e5 {[%clk 0:03:01]} 8. d4 {[%clk 0:03:01]}  Nc6 {[%clk 0:02:55]} 9. dxc5 {[%clk 0:02:47]}  dxc5 {[%clk 0:02:54]} 10. Qxd8 {[%clk 0:02:45]}  Rxd8 {[%clk 0:02:55]} 11. Bxc6 {[%clk 0:02:45]}  bxc6 {[%clk 0:02:56]} 12. e4 {[%clk 0:02:43]}  Be6 {[%clk 0:02:53]} 13. b3 {[%clk 0:02:43]}  Rd4 {[%clk 0:02:42]} 14. f3 {[%clk 0:02:41]}  Rd7 {[%clk 0:02:31]} 15. Ba3 {[%clk 0:02:34]}  Bf8 {[%clk 0:02:29]} 16. Rad1 {[%clk 0:02:33]}  Rad8 {[%clk 0:02:29]} 17. Rxd7 {[%clk 0:02:33]}  Rxd7 {[%clk 0:02:28]} 18. Rd1 {[%clk 0:02:33]}  Rxd1+ {[%clk 0:02:25]} 19. Nxd1 {[%clk 0:02:34]}  Nd7 {[%clk 0:02:26]} 20. Ndc3 {[%clk 0:02:34]}  f5 {[%clk 0:02:25]} 21. Kf2 {[%clk 0:02:31]}  Kf7 {[%clk 0:02:13]} 22. Nc1 {[%clk 0:02:29]}  g5 {[%clk 0:01:37]} 23. Nd3 {[%clk 0:02:26]}  fxe4 {[%clk 0:01:32]} 24. Nxe4 {[%clk 0:02:11]}  Bf5 {[%clk 0:01:32]} 25. Nxg5+ {[%clk 0:02:09]}  Kg6 {[%clk 0:01:23]} 26. Ne4 {[%clk 0:02:10]}  Bxe4 {[%clk 0:01:22]} 27. fxe4 {[%clk 0:02:09]}  Nf6 {[%clk 0:01:23]} 28. Nxe5+ {[%clk 0:02:05]}  Kg5 {[%clk 0:01:21]} 29. Kf3 {[%clk 0:02:02]}  h5 {[%clk 0:01:17]} 30. Nd3 {[%clk 0:02:00]}  Ng4 {[%clk 0:01:13]} 31. h3 {[%clk 0:01:54]}  Nf6 {[%clk 0:00:59]} 32. Bxc5 {[%clk 0:01:53]}  Bxc5 {[%clk 0:00:53]} 33. Nxc5 {[%clk 0:01:54]}  Ne8 {[%clk 0:00:51]} 34. Ne6+ {[%clk 0:01:38]}  Kf6 {[%clk 0:00:50]} 35. Nf4 {[%clk 0:01:38]}  Ng7 {[%clk 0:00:43]} 36. g4 {[%clk 0:01:36]}  hxg4+ {[%clk 0:00:39]} 37. hxg4 {[%clk 0:01:36]}  Ke5 {[%clk 0:00:40]} 38. Ke3 {[%clk 0:01:35]}  Ne8 {[%clk 0:00:34]} 39. Nd3+ {[%clk 0:01:26]}  Kd6 {[%clk 0:00:31]} 40. e5+ {[%clk 0:01:27]}  Ke6 {[%clk 0:00:29]} 41. Ke4 {[%clk 0:01:26]}  Ng7 {[%clk 0:00:26]} 42. Nf4+ {[%clk 0:01:26]}  Ke7 {[%clk 0:00:23]} 43. b4 {[%clk 0:01:23]} 1-0

[Event "January 2 Late 2024"]
[Site "https://www.chess.com"]
[Date "2024.01.02"]
[Round "3"]
[White "Lopez Del Alamo, Antonio"]
[Black "Horak, Martin"]
[Result "1-0"]
[Board "157"]
[TimeControl "180+1"]
[WhiteFideId "2227339"]
[BlackFideId "367095"]
[WhiteElo "2273"]
[BlackElo "2527"]
[WhiteTeam "ESP"]
[BlackTeam "CZE"]
[WhiteClock "0:01:07"]
[BlackClock "0:00:00"]

1. e4 {[%clk 0:03:00]}  c5 {[%clk 0:02:59]} 2. Nf3 {[%clk 0:02:56]}  Nc6 {[%clk 0:03:00]} 3. b4 {[%clk 0:02:50]}  cxb4 {[%clk 0:02:56]} 4. d4 {[%clk 0:02:50]}  d5 {[%clk 0:02:38]} 5. exd5 {[%clk 0:02:49]}  Qxd5 {[%clk 0:02:39]} 6. c4 {[%clk 0:02:49]}  bxc3 {[%clk 0:02:40]} 7. Nxc3 {[%clk 0:02:49]}  Qa5 {[%clk 0:02:28]} 8. Rb1 {[%clk 0:02:44]}  Qxc3+ {[%clk 0:02:06]} 9. Bd2 {[%clk 0:02:42]}  Qa3 {[%clk 0:02:06]} 10. d5 {[%clk 0:02:42]}  Nf6 {[%clk 0:01:40]} 11. dxc6 {[%clk 0:02:41]}  bxc6 {[%clk 0:01:40]} 12. Qc2 {[%clk 0:02:41]}  Qd6 {[%clk 0:01:28]} 13. Bc4 {[%clk 0:02:12]}  Be6 {[%clk 0:01:10]} 14. Bb4 {[%clk 0:02:01]}  Qd7 {[%clk 0:01:07]} 15. Ne5 {[%clk 0:01:59]}  Qc7 {[%clk 0:01:01]} 16. O-O {[%clk 0:01:52]}  Qxe5 {[%clk 0:00:42]} 17. Rfe1 {[%clk 0:01:45]}  Qf5 {[%clk 0:00:12]} 18. Qa4 {[%clk 0:01:36]}  Bxc4 {[%clk 0:00:10]} 19. Qxc6+ {[%clk 0:01:35]}  Qd7 {[%clk 0:00:02]} 20. Qxa8+ {[%clk 0:01:34]}  Qd8 {[%clk 0:00:03]} 21. Qc6+ {[%clk 0:01:33]}  Nd7 {[%clk 0:00:04]} 22. Qxc4 {[%clk 0:01:27]}  e6 {[%clk 0:00:04]} 23. Red1 {[%clk 0:01:22]}  Bxb4 {[%clk 0:00:03]} 24. Qxb4 {[%clk 0:01:19]}  f6 {[%clk 0:00:03]} 25. Qd6 {[%clk 0:01:18]}  Qe7 {[%clk 0:00:03]} 26. Qc7 {[%clk 0:01:14]}  h5 {[%clk 0:00:01]} 27. Rxd7 {[%clk 0:01:07]}  Qxd7 {[%clk 0:00:00]} 28. Rb8+ {[%clk 0:01:07]} 1-0

[Event "January 2 Late 2024"]
[Site "https://www.chess.com"]
[Date "2024.01.02"]
[Round "3"]
[White "Matta, Nicholas"]
[Black "Brejnik, Gustav"]
[Result "1-0"]
[Board "158"]
[TimeControl "180+1"]
[WhiteFideId "30914523"]
[BlackFideId "362662"]
[WhiteElo "2526"]
[BlackElo "2264"]
[WhiteTeam "USA"]
[BlackTeam "CZE"]
[WhiteClock "0:01:25"]
[BlackClock "0:00:41"]

1. Nf3 {[%clk 0:03:00]}  d5 {[%clk 0:02:56]} 2. g3 {[%clk 0:03:00]}  g6 {[%clk 0:02:56]} 3. Bg2 {[%clk 0:02:54]}  Bg7 {[%clk 0:02:56]} 4. O-O {[%clk 0:02:54]}  e5 {[%clk 0:02:56]} 5. c4 {[%clk 0:02:44]}  dxc4 {[%clk 0:02:54]} 6. Qa4+ {[%clk 0:02:42]}  Nc6 {[%clk 0:02:54]} 7. Qxc4 {[%clk 0:02:37]}  Nge7 {[%clk 0:02:47]} 8. d3 {[%clk 0:02:29]}  O-O {[%clk 0:02:46]} 9. a3 {[%clk 0:02:27]}  Be6 {[%clk 0:02:46]} 10. Qc2 {[%clk 0:02:27]}  Nf5 {[%clk 0:02:37]} 11. e3 {[%clk 0:02:17]}  Qe7 {[%clk 0:02:10]} 12. Nbd2 {[%clk 0:02:14]}  Nd8 {[%clk 0:02:00]} 13. Ne4 {[%clk 0:02:09]}  h6 {[%clk 0:01:55]} 14. b4 {[%clk 0:02:07]}  a5 {[%clk 0:01:53]} 15. b5 {[%clk 0:01:55]}  c6 {[%clk 0:01:50]} 16. a4 {[%clk 0:01:53]}  Bd5 {[%clk 0:01:44]} 17. Ba3 {[%clk 0:01:52]}  Qe6 {[%clk 0:01:35]} 18. Bxf8 {[%clk 0:01:49]}  Bxf8 {[%clk 0:01:35]} 19. Nc5 {[%clk 0:01:40]}  Bxc5 {[%clk 0:01:33]} 20. Qxc5 {[%clk 0:01:41]}  Bxf3 {[%clk 0:01:26]} 21. Bxf3 {[%clk 0:01:42]}  cxb5 {[%clk 0:01:26]} 22. axb5 {[%clk 0:01:41]}  Rc8 {[%clk 0:01:26]} 23. Qd5 {[%clk 0:01:33]}  b6 {[%clk 0:00:41]} 24. Rac1 {[%clk 0:01:25]} 1-0

[Event "January 2 Late 2024"]
[Site "https://www.chess.com"]
[Date "2024.01.02"]
[Round "3"]
[White "Dinu, Dumitru-Daniel"]
[Black "Perry, Patrick"]
[Result "0-1"]
[Board "160"]
[TimeControl "180+1"]
[WhiteFideId "1208403"]
[BlackFideId "30917727"]
[WhiteElo "2522"]
[BlackElo "2236"]
[WhiteTeam "ROU"]
[BlackTeam "USA"]
[WhiteClock "0:00:26"]
[BlackClock "0:01:35"]

1. e4 {[%clk 0:03:00]}  Nf6 {[%clk 0:02:59]} 2. Nc3 {[%clk 0:02:59]}  e5 {[%clk 0:02:56]} 3. Nf3 {[%clk 0:02:59]}  d6 {[%clk 0:02:55]} 4. d4 {[%clk 0:02:58]}  Nbd7 {[%clk 0:02:55]} 5. Bc4 {[%clk 0:02:58]}  Be7 {[%clk 0:02:55]} 6. O-O {[%clk 0:02:57]}  O-O {[%clk 0:02:56]} 7. Re1 {[%clk 0:02:58]}  c6 {[%clk 0:02:54]} 8. a4 {[%clk 0:02:58]}  Qc7 {[%clk 0:02:52]} 9. h3 {[%clk 0:02:57]}  b6 {[%clk 0:02:51]} 10. Be3 {[%clk 0:02:53]}  Bb7 {[%clk 0:02:51]} 11. Bb3 {[%clk 0:02:52]}  Rad8 {[%clk 0:02:47]} 12. dxe5 {[%clk 0:02:51]}  Nxe5 {[%clk 0:02:46]} 13. Nxe5 {[%clk 0:02:51]}  dxe5 {[%clk 0:02:44]} 14. Qf3 {[%clk 0:02:50]}  h6 {[%clk 0:02:42]} 15. a5 {[%clk 0:02:44]}  Nd7 {[%clk 0:02:34]} 16. axb6 {[%clk 0:02:43]}  axb6 {[%clk 0:02:34]} 17. Qg3 {[%clk 0:02:35]}  Kh7 {[%clk 0:02:32]} 18. Rad1 {[%clk 0:02:20]}  Nc5 {[%clk 0:02:29]} 19. Bc4 {[%clk 0:02:19]}  b5 {[%clk 0:02:21]} 20. Bf1 {[%clk 0:02:05]}  b4 {[%clk 0:02:20]} 21. Bxc5 {[%clk 0:02:04]}  Bxc5 {[%clk 0:02:19]} 22. Ne2 {[%clk 0:02:05]}  Rxd1 {[%clk 0:02:15]} 23. Rxd1 {[%clk 0:02:04]}  f6 {[%clk 0:02:14]} 24. Nc1 {[%clk 0:02:03]}  Rd8 {[%clk 0:02:14]} 25. Rxd8 {[%clk 0:02:02]}  Qxd8 {[%clk 0:02:14]} 26. Nd3 {[%clk 0:02:03]}  Bf8 {[%clk 0:02:12]} 27. Qe3 {[%clk 0:01:59]}  Ba6 {[%clk 0:02:08]} 28. Qa7 {[%clk 0:01:51]}  Bxd3 {[%clk 0:02:07]} 29. Bxd3 {[%clk 0:01:51]}  Qd4 {[%clk 0:02:07]} 30. Qxd4 {[%clk 0:01:37]}  exd4 {[%clk 0:02:07]} 31. f4 {[%clk 0:01:35]}  g6 {[%clk 0:02:04]} 32. Kf2 {[%clk 0:01:35]}  Kg7 {[%clk 0:02:04]} 33. g4 {[%clk 0:01:32]}  Bd6 {[%clk 0:02:03]} 34. Kf3 {[%clk 0:01:32]}  Kf7 {[%clk 0:02:03]} 35. Bc4+ {[%clk 0:01:32]}  Ke7 {[%clk 0:02:03]} 36. h4 {[%clk 0:01:32]}  Bc7 {[%clk 0:01:56]} 37. Bb3 {[%clk 0:01:22]}  g5 {[%clk 0:01:56]} 38. fxg5 {[%clk 0:01:21]}  fxg5 {[%clk 0:01:56]} 39. hxg5 {[%clk 0:01:21]}  hxg5 {[%clk 0:01:55]} 40. Ba4 {[%clk 0:01:21]}  Kd6 {[%clk 0:01:54]} 41. Bb3 {[%clk 0:01:17]}  Ke5 {[%clk 0:01:53]} 42. Bc4 {[%clk 0:01:16]}  c5 {[%clk 0:01:53]} 43. Bd5 {[%clk 0:01:12]}  Bd6 {[%clk 0:01:49]} 44. b3 {[%clk 0:01:11]}  Be7 {[%clk 0:01:49]} 45. Bc4 {[%clk 0:01:05]}  Bd6 {[%clk 0:01:50]} 46. Bb5 {[%clk 0:01:05]}  Be7 {[%clk 0:01:50]} 47. Bd7 {[%clk 0:01:02]}  Bd6 {[%clk 0:01:51]} 48. Bf5 {[%clk 0:01:03]}  Be7 {[%clk 0:01:51]} 49. Ke2 {[%clk 0:01:03]}  Kf4 {[%clk 0:01:50]} 50. Kd3 {[%clk 0:01:03]}  Ke5 {[%clk 0:01:48]} 51. Kc4 {[%clk 0:01:03]}  Bd6 {[%clk 0:01:48]} 52. Kb5 {[%clk 0:01:04]}  Be7 {[%clk 0:01:48]} 53. Kc6 {[%clk 0:01:04]}  Bd6 {[%clk 0:01:48]} 54. Kd7 {[%clk 0:01:03]}  Bf8 {[%clk 0:01:46]} 55. Ke8 {[%clk 0:01:03]}  Bd6 {[%clk 0:01:46]} 56. Kf7 {[%clk 0:01:04]}  Bc7 {[%clk 0:01:44]} 57. Kg6 {[%clk 0:01:04]}  Bd8 {[%clk 0:01:45]} 58. Kf7 {[%clk 0:01:04]}  Bc7 {[%clk 0:01:44]} 59. Ke7 {[%clk 0:01:05]}  Bd6+ {[%clk 0:01:45]} 60. Kd8 {[%clk 0:01:06]}  Bf8 {[%clk 0:01:44]} 61. Kc7 {[%clk 0:01:06]}  Bd6+ {[%clk 0:01:45]} 62. Kc6 {[%clk 0:01:05]}  Bf8 {[%clk 0:01:44]} 63. Kd7 {[%clk 0:01:04]}  Bd6 {[%clk 0:01:44]} 64. Ke8 {[%clk 0:01:04]}  c4 {[%clk 0:01:38]} 65. Bd7 {[%clk 0:00:35]}  cxb3 {[%clk 0:01:37]} 66. cxb3 {[%clk 0:00:35]}  Kxe4 {[%clk 0:01:36]} 67. Kf7 {[%clk 0:00:32]}  d3 {[%clk 0:01:36]} 68. Bf5+ {[%clk 0:00:32]}  Ke3 {[%clk 0:01:35]} 69. Ke6 {[%clk 0:00:32]}  Bf4 {[%clk 0:01:35]} 70. Kd5 {[%clk 0:00:26]}  d2 {[%clk 0:01:35]} 0-1

[Event "January 2 Late 2024"]
[Site "https://www.chess.com"]
[Date "2024.01.02"]
[Round "3"]
[White "Vifleemskaia, Svetlana"]
[Black "Korpics, Zsolt"]
[Result "1-0"]
[Board "161"]
[TimeControl "180+1"]
[WhiteFideId "4129490"]
[BlackFideId "705241"]
[WhiteElo "2233"]
[BlackElo "2522"]
[WhiteTeam "RUS"]
[BlackTeam "HUN"]
[WhiteClock "0:00:10"]
[BlackClock "0:00:06"]

1. d4 {[%clk 0:03:00]}  Nf6 {[%clk 0:03:00]} 2. c4 {[%clk 0:03:00]}  e6 {[%clk 0:03:00]} 3. Nc3 {[%clk 0:03:00]}  Bb4 {[%clk 0:03:00]} 4. e3 {[%clk 0:03:00]}  O-O {[%clk 0:02:59]} 5. Ne2 {[%clk 0:03:01]}  c5 {[%clk 0:02:58]} 6. a3 {[%clk 0:03:01]}  Bxc3+ {[%clk 0:02:57]} 7. Nxc3 {[%clk 0:03:01]}  cxd4 {[%clk 0:02:57]} 8. exd4 {[%clk 0:03:00]}  d5 {[%clk 0:02:57]} 9. cxd5 {[%clk 0:02:58]}  Nxd5 {[%clk 0:02:57]} 10. Be2 {[%clk 0:02:59]}  Nxc3 {[%clk 0:02:52]} 11. bxc3 {[%clk 0:02:57]}  Bd7 {[%clk 0:02:51]} 12. O-O {[%clk 0:02:55]}  Bc6 {[%clk 0:02:51]} 13. c4 {[%clk 0:02:52]}  Qf6 {[%clk 0:02:41]} 14. Be3 {[%clk 0:02:46]}  Rd8 {[%clk 0:02:39]} 15. Rb1 {[%clk 0:02:18]}  Nd7 {[%clk 0:02:31]} 16. Qd2 {[%clk 0:02:07]}  Qg6 {[%clk 0:02:30]} 17. f3 {[%clk 0:02:01]}  b6 {[%clk 0:02:15]} 18. Bd3 {[%clk 0:01:55]}  Qh5 {[%clk 0:02:14]} 19. g4 {[%clk 0:01:45]}  Qh3 {[%clk 0:02:10]} 20. Qg2 {[%clk 0:01:34]}  Qxg2+ {[%clk 0:01:57]} 21. Kxg2 {[%clk 0:01:34]}  Ne5 {[%clk 0:01:57]} 22. dxe5 {[%clk 0:00:56]}  Rxd3 {[%clk 0:01:58]} 23. Kf2 {[%clk 0:00:43]}  Rxa3 {[%clk 0:01:55]} 24. Rfc1 {[%clk 0:00:43]}  Ra2+ {[%clk 0:01:53]} 25. Kg3 {[%clk 0:00:43]}  Re2 {[%clk 0:01:43]} 26. Bg1 {[%clk 0:00:38]}  Rxe5 {[%clk 0:01:42]} 27. Ra1 {[%clk 0:00:31]}  Re2 {[%clk 0:01:27]} 28. c5 {[%clk 0:00:24]}  bxc5 {[%clk 0:01:21]} 29. Rxc5 {[%clk 0:00:23]}  Bd5 {[%clk 0:00:58]} 30. Rxa7 {[%clk 0:00:18]}  Rd8 {[%clk 0:00:56]} 31. Rcc7 {[%clk 0:00:17]}  e5 {[%clk 0:00:56]} 32. Rd7 {[%clk 0:00:15]}  Re8 {[%clk 0:00:18]} 33. Rxd5 {[%clk 0:00:14]}  e4 {[%clk 0:00:18]} 34. fxe4 {[%clk 0:00:14]}  R2xe4 {[%clk 0:00:18]} 35. Rdd7 {[%clk 0:00:14]}  Rf8 {[%clk 0:00:18]} 36. Re7 {[%clk 0:00:11]}  Rc4 {[%clk 0:00:17]} 37. Rac7 {[%clk 0:00:09]}  Rb4 {[%clk 0:00:17]} 38. Rc3 {[%clk 0:00:10]}  h6 {[%clk 0:00:13]} 39. Rce3 {[%clk 0:00:09]}  Rc8 {[%clk 0:00:09]} 40. Re8+ {[%clk 0:00:09]}  Rxe8 {[%clk 0:00:09]} 41. Rxe8+ {[%clk 0:00:10]}  Kh7 {[%clk 0:00:10]} 42. Re2 {[%clk 0:00:09]}  Rb3+ {[%clk 0:00:10]} 43. Be3 {[%clk 0:00:09]}  Kg6 {[%clk 0:00:10]} 44. Kg2 {[%clk 0:00:08]}  h5 {[%clk 0:00:10]} 45. g5 {[%clk 0:00:08]}  Kf5 {[%clk 0:00:08]} 46. Rf2+ {[%clk 0:00:08]}  Kg6 {[%clk 0:00:07]} 47. Bd2 {[%clk 0:00:07]}  Rd3 {[%clk 0:00:06]} 48. h4 {[%clk 0:00:07]}  Rd5 {[%clk 0:00:06]} 49. Be3 {[%clk 0:00:06]}  Re5 {[%clk 0:00:06]} 50. Kf3 {[%clk 0:00:06]}  Rf5+ {[%clk 0:00:06]} 51. Kg3 {[%clk 0:00:06]}  Re5 {[%clk 0:00:07]} 52. Rf3 {[%clk 0:00:06]}  Re4 {[%clk 0:00:06]} 53. Bf4 {[%clk 0:00:06]}  Re6 {[%clk 0:00:06]} 54. Re3 {[%clk 0:00:07]}  Rc6 {[%clk 0:00:06]} 55. Rd3 {[%clk 0:00:07]}  Ra6 {[%clk 0:00:07]} 56. Rd6+ {[%clk 0:00:07]}  Rxd6 {[%clk 0:00:06]} 57. Bxd6 {[%clk 0:00:08]}  Kf5 {[%clk 0:00:06]} 58. Bf4 {[%clk 0:00:07]}  Ke4 {[%clk 0:00:06]} 59. Bd2 {[%clk 0:00:07]}  Kf5 {[%clk 0:00:06]} 60. Bc3 {[%clk 0:00:07]}  g6 {[%clk 0:00:06]} 61. Bf6 {[%clk 0:00:07]}  Ke4 {[%clk 0:00:06]} 62. Be7 {[%clk 0:00:06]}  Kf5 {[%clk 0:00:07]} 63. Bd6 {[%clk 0:00:05]}  Ke4 {[%clk 0:00:07]} 64. Bc7 {[%clk 0:00:05]}  Ke3 {[%clk 0:00:07]} 65. Bd8 {[%clk 0:00:05]}  Ke4 {[%clk 0:00:08]} 66. Bf6 {[%clk 0:00:05]}  Ke3 {[%clk 0:00:08]} 67. Be5 {[%clk 0:00:04]}  Ke4 {[%clk 0:00:09]} 68. Bf4 {[%clk 0:00:05]}  Kf5 {[%clk 0:00:07]} 69. Kf3 {[%clk 0:00:05]}  f6 {[%clk 0:00:07]} 70. gxf6 {[%clk 0:00:05]}  Kxf6 {[%clk 0:00:08]} 71. Ke4 {[%clk 0:00:05]}  Ke6 {[%clk 0:00:08]} 72. Bg5 {[%clk 0:00:05]}  Kd6 {[%clk 0:00:07]} 73. Kd4 {[%clk 0:00:05]}  Ke6 {[%clk 0:00:08]} 74. Ke4 {[%clk 0:00:06]}  Kd6 {[%clk 0:00:08]} 75. Kf4 {[%clk 0:00:07]}  Ke6 {[%clk 0:00:09]} 76. Bh6 {[%clk 0:00:07]}  Kf6 {[%clk 0:00:09]} 77. Bf8 {[%clk 0:00:07]}  Kf7 {[%clk 0:00:09]} 78. Bc5 {[%clk 0:00:07]}  Kf6 {[%clk 0:00:10]} 79. Bd4+ {[%clk 0:00:07]}  Kf7 {[%clk 0:00:09]} 80. Kg5 {[%clk 0:00:08]}  Ke6 {[%clk 0:00:09]} 81. Kxg6 {[%clk 0:00:09]}  Kd5 {[%clk 0:00:09]} 82. Ba1 {[%clk 0:00:08]}  Ke6 {[%clk 0:00:06]} 83. Kxh5 {[%clk 0:00:09]}  Kf7 {[%clk 0:00:07]} 84. Kh6 {[%clk 0:00:09]}  Kg8 {[%clk 0:00:07]} 85. h5 {[%clk 0:00:09]}  Kf7 {[%clk 0:00:07]} 86. Kh7 {[%clk 0:00:10]}  Kf8 {[%clk 0:00:07]} 87. Kg6 {[%clk 0:00:08]}  Kg8 {[%clk 0:00:08]} 88. h6 {[%clk 0:00:09]}  Kf8 {[%clk 0:00:06]} 89. h7 {[%clk 0:00:10]} 1-0

[Event "January 2 Late 2024"]
[Site "https://www.chess.com"]
[Date "2024.01.02"]
[Round "3"]
[White "Negron Lizarazo, Juan Sebastian"]
[Black "Baches Garcia, Guillermo"]
[Result "0-1"]
[Board "164"]
[TimeControl "180+1"]
[WhiteFideId "3936910"]
[BlackFideId "2209764"]
[WhiteElo "2184"]
[BlackElo "2520"]
[WhiteTeam "COL"]
[BlackTeam "ESP"]
[WhiteClock "0:00:00"]
[BlackClock "0:00:40"]

1. e4 {[%clk 0:03:00]}  c5 {[%clk 0:02:59]} 2. Nc3 {[%clk 0:02:56]}  d6 {[%clk 0:02:59]} 3. g3 {[%clk 0:02:54]}  Nc6 {[%clk 0:02:59]} 4. Bg2 {[%clk 0:02:52]}  g6 {[%clk 0:03:00]} 5. d3 {[%clk 0:02:50]}  Bg7 {[%clk 0:03:00]} 6. Be3 {[%clk 0:02:49]}  Rb8 {[%clk 0:02:59]} 7. Qd2 {[%clk 0:02:45]}  b5 {[%clk 0:02:57]} 8. Rb1 {[%clk 0:02:43]}  b4 {[%clk 0:02:54]} 9. Nce2 {[%clk 0:02:40]}  Qa5 {[%clk 0:02:54]} 10. Nf3 {[%clk 0:02:32]}  Qxa2 {[%clk 0:02:46]} 11. O-O {[%clk 0:02:28]}  Qa5 {[%clk 0:02:40]} 12. h3 {[%clk 0:02:20]}  Nf6 {[%clk 0:02:38]} 13. Bh6 {[%clk 0:02:15]}  O-O {[%clk 0:02:38]} 14. Nh2 {[%clk 0:01:59]}  e5 {[%clk 0:02:25]} 15. Bxg7 {[%clk 0:01:52]}  Kxg7 {[%clk 0:02:24]} 16. f4 {[%clk 0:01:48]}  Nd4 {[%clk 0:02:20]} 17. g4 {[%clk 0:01:26]}  Nxe2+ {[%clk 0:02:04]} 18. Qxe2 {[%clk 0:01:24]}  Qc7 {[%clk 0:01:58]} 19. f5 {[%clk 0:01:20]}  g5 {[%clk 0:01:50]} 20. Nf3 {[%clk 0:01:14]}  h6 {[%clk 0:01:50]} 21. Qe3 {[%clk 0:01:02]}  Nh7 {[%clk 0:01:44]} 22. h4 {[%clk 0:01:01]}  f6 {[%clk 0:01:44]} 23. hxg5 {[%clk 0:00:56]}  hxg5 {[%clk 0:01:44]} 24. Kf2 {[%clk 0:00:51]}  Bd7 {[%clk 0:01:40]} 25. Rh1 {[%clk 0:00:48]}  Rh8 {[%clk 0:01:39]} 26. Rh5 {[%clk 0:00:41]}  Be8 {[%clk 0:01:38]} 27. Nxg5 {[%clk 0:00:28]}  Nxg5 {[%clk 0:01:25]} 28. Rxg5+ {[%clk 0:00:26]}  fxg5 {[%clk 0:01:25]} 29. Qxg5+ {[%clk 0:00:23]}  Kf8 {[%clk 0:01:17]} 30. Qf6+ {[%clk 0:00:20]}  Kg8 {[%clk 0:01:17]} 31. g5 {[%clk 0:00:16]}  Rb7 {[%clk 0:01:08]} 32. g6 {[%clk 0:00:16]}  Qe7 {[%clk 0:01:06]} 33. Qxe7 {[%clk 0:00:12]}  Rxe7 {[%clk 0:01:06]} 34. f6 {[%clk 0:00:13]}  Rc7 {[%clk 0:01:05]} 35. f7+ {[%clk 0:00:10]}  Bxf7 {[%clk 0:01:04]} 36. gxf7+ {[%clk 0:00:11]}  Rxf7+ {[%clk 0:01:04]} 37. Ke2 {[%clk 0:00:10]}  Rh2 {[%clk 0:01:00]} 38. Rg1 {[%clk 0:00:10]}  Kf8 {[%clk 0:00:57]} 39. Ke3 {[%clk 0:00:09]}  Ke7 {[%clk 0:00:55]} 40. c3 {[%clk 0:00:07]}  a5 {[%clk 0:00:54]} 41. cxb4 {[%clk 0:00:07]}  axb4 {[%clk 0:00:55]} 42. b3 {[%clk 0:00:07]}  Rg7 {[%clk 0:00:52]} 43. Kf3 {[%clk 0:00:05]}  Rh8 {[%clk 0:00:52]} 44. Ra1 {[%clk 0:00:04]}  Rf8+ {[%clk 0:00:52]} 45. Ke3 {[%clk 0:00:04]}  Rxg2 {[%clk 0:00:52]} 46. Ra7+ {[%clk 0:00:04]}  Kf6 {[%clk 0:00:49]} 47. Rd7 {[%clk 0:00:00]}  Ke6 {[%clk 0:00:40]} 0-1